[Event "*** Titled Tuesday Blitz"]
[Site "Chess.com"]
[Date "2019.04.02"]
[Round "2"]
[White "francyIM"]
[Black "JoachimMouhamad"]
[Result "1/2-1/2"]
[WhiteElo "2585"]
[BlackElo "2344"]
[TimeControl "180+2"]
[EndTime "14:24:21 PDT"]
[Termination "Game drawn by agreement"]

1. d4 {[%clk 0:03:01.9]} 1... Nf6 {[%clk 0:03:00.1]} 2. c4 {[%clk 0:03:03.3]}
2... g6 {[%clk 0:03:01.4]} 3. Nc3 {[%clk 0:03:04.2]} 3... Bg7 {[%clk 0:03:02.3]}
4. g3 {[%clk 0:03:05.6]} 4... O-O {[%clk 0:03:02.5]} 5. Bg2 {[%clk 0:03:07.1]}
5... d6 {[%clk 0:03:01.6]} 6. Nf3 {[%clk 0:03:08.2]} 6... Nc6 {[%clk 0:03:01.3]}
7. O-O {[%clk 0:03:09.4]} 7... a6 {[%clk 0:03:01.4]} 8. d5 {[%clk 0:03:09]} 8...
Na5 {[%clk 0:03:00.4]} 9. b3 {[%clk 0:03:10.2]} 9... Rb8 {[%clk 0:02:59.3]} 10.
Bb2 {[%clk 0:03:10.4]} 10... b5 {[%clk 0:02:50.6]} 11. cxb5 {[%clk 0:03:10.3]}
11... axb5 {[%clk 0:02:51.8]} 12. Nd4 {[%clk 0:03:11.6]} 12... Bd7 {[%clk
0:02:46.1]} 13. Rc1 {[%clk 0:03:11.3]} 13... e5 {[%clk 0:02:41]} 14. Nc6 {[%clk
0:03:07.4]} 14... Nxc6 {[%clk 0:02:35]} 15. dxc6 {[%clk 0:03:09.3]} 15... Be6
{[%clk 0:02:35.3]} 16. e4 {[%clk 0:03:04.8]} 16... Qc8 {[%clk 0:02:28.1]} 17.
Qd3 {[%clk 0:03:01.4]} 17... Qa6 {[%clk 0:02:28.5]} 18. a4 {[%clk 0:02:58.2]}
18... Bxb3 {[%clk 0:02:28.1]} 19. axb5 {[%clk 0:02:58.4]} 19... Qb6 {[%clk
0:02:13.3]} 20. Ra1 {[%clk 0:02:55.2]} 20... Ra8 {[%clk 0:02:08.2]} 21. Rxa8
{[%clk 0:02:55.2]} 21... Rxa8 {[%clk 0:02:10.1]} 22. Bc1 {[%clk 0:02:56.7]}
22... Ng4 {[%clk 0:01:29.4]} 23. h3 {[%clk 0:02:56.3]} 23... Nxf2 {[%clk
0:01:30.1]} 24. Rxf2 {[%clk 0:02:55.6]} 24... Ra1 {[%clk 0:01:31.7]} 25. Qd2
{[%clk 0:02:52.5]} 25... Qd4 {[%clk 0:01:23.6]} 26. Kh2 {[%clk 0:02:31.8]} 26...
Rxc1 {[%clk 0:01:24.2]} 27. Qxd4 {[%clk 0:02:21.7]} 27... exd4 {[%clk
0:01:25.3]} 28. Nd5 {[%clk 0:02:23.2]} 28... Bxd5 {[%clk 0:01:21]} 29. exd5
{[%clk 0:02:25.1]} 29... f5 {[%clk 0:00:47.9]} 30. Bf1 {[%clk 0:02:17.2]} 30...
Be5 {[%clk 0:00:48]} 31. Kg2 {[%clk 0:02:17.4]} 31... Kf7 {[%clk 0:00:44.9]} 32.
Rf3 {[%clk 0:02:12]} 32... Ke7 {[%clk 0:00:45.5]} 33. Ra3 {[%clk 0:02:12]} 33...
Rc3 {[%clk 0:00:38.9]} 34. Rxc3 {[%clk 0:02:10.5]} 34... dxc3 {[%clk 0:00:40.1]}
35. Bd3 {[%clk 0:02:12.4]} 35... Kd8 {[%clk 0:00:34.3]} 36. g4 {[%clk 0:02:13]}
36... fxg4 {[%clk 0:00:33.4]} 37. hxg4 {[%clk 0:02:14.9]} 37... Kc8 {[%clk
0:00:33.1]} 38. Kf3 {[%clk 0:02:09.8]} 38... Kb8 {[%clk 0:00:34.6]} 39. b6
{[%clk 0:02:10.4]} 39... cxb6 {[%clk 0:00:34.9]} 40. Ke2 {[%clk 0:02:11.8]}
40... Bf4 {[%clk 0:00:33]} 41. Kd1 {[%clk 0:02:11.7]} 41... Kc7 {[%clk 0:00:32]}
42. Kc2 {[%clk 0:02:12.1]} 42... Be5 {[%clk 0:00:32.6]} 43. Be4 {[%clk
0:02:10.3]} 43... h5 {[%clk 0:00:29.8]} 44. g5 {[%clk 0:02:10.1]} 44... h4
{[%clk 0:00:30]} 45. Bxg6 {[%clk 0:02:10.2]} 45... Bf4 {[%clk 0:00:26.3]} 46.
Bf5 {[%clk 0:02:10.5]} 46... Bxg5 {[%clk 0:00:26.2]} 47. Kxc3 {[%clk 0:02:12.4]}
47... Bd8 {[%clk 0:00:22.6]} 48. Bh3 {[%clk 0:02:13]} 48... Kb8 {[%clk
0:00:21.1]} 49. Bf1 {[%clk 0:02:12.6]} 49... Ka7 {[%clk 0:00:17.8]} 50. Kd4
{[%clk 0:02:14.1]} 50... Kb8 {[%clk 0:00:14.4]} 51. Ke4 {[%clk 0:02:15.5]} 51...
Kc7 {[%clk 0:00:15.5]} 52. Kf5 {[%clk 0:02:16.6]} 52... Be7 {[%clk 0:00:15.7]}
53. Kg6 {[%clk 0:02:17.6]} 53... Bd8 {[%clk 0:00:16.6]} 54. Kg7 {[%clk
0:02:18.1]} 54... Bg5 {[%clk 0:00:16.8]} 55. Kf7 {[%clk 0:02:19.6]} 55... Be3
{[%clk 0:00:17.2]} 56. Kf6 {[%clk 0:02:19.8]} 56... Bf2 {[%clk 0:00:18.4]} 57.
Kf5 {[%clk 0:02:13.4]} 57... Bg3 {[%clk 0:00:20.3]} 58. Bg2 {[%clk 0:02:12.1]}
58... Kd8 {[%clk 0:00:20.3]} 59. Bh3 {[%clk 0:02:11.2]} 59... b5 {[%clk
0:00:21.1]} 60. Ke4 {[%clk 0:02:11.9]} 60... b4 {[%clk 0:00:21.9]} 61. Kd3
{[%clk 0:02:12.4]} 61... Kc7 {[%clk 0:00:23.3]} 62. Kd2 {[%clk 0:02:11.4]} 62...
Kb6 {[%clk 0:00:24.4]} 63. Kd3 {[%clk 0:02:10.6]} 63... Be5 {[%clk 0:00:25.4]}
64. Kc4 {[%clk 0:02:10.4]} 64... Bc3 {[%clk 0:00:26.7]} 65. Bf1 {[%clk
0:02:11.1]} 65... Be1 {[%clk 0:00:27.4]} 66. Bg2 {[%clk 0:02:12]} 66... Bd2
{[%clk 0:00:27.9]} 67. Bh3 {[%clk 0:02:12.3]} 67... Be1 {[%clk 0:00:28.9]} 68.
Bf5 {[%clk 0:02:13.7]} 68... Kc7 {[%clk 0:00:29.9]} 69. Kb5 {[%clk 0:02:14.3]}
69... b3 {[%clk 0:00:30.7]} 70. Kc4 {[%clk 0:02:15.3]} 70... b2 {[%clk
0:00:30.9]} 71. Kb3 {[%clk 0:02:16.3]} 71... h3 {[%clk 0:00:29.5]} 72. Kxb2
{[%clk 0:02:17.3]} 72... h2 {[%clk 0:00:30.3]} 73. Be4 {[%clk 0:02:18.7]} 73...
Bg3 {[%clk 0:00:22.1]} 74. Bh1 {[%clk 0:02:20.6]} 74... Be5+ {[%clk 0:00:23.6]}
75. Kc2 {[%clk 0:02:22.1]} 75... Bf4 {[%clk 0:00:24.6]} 76. Kd3 {[%clk 0:02:24]}
76... Be5 {[%clk 0:00:26]} 77. Ke4 {[%clk 0:02:23.4]} 77... Bg7 {[%clk
0:00:27.3]} 78. Kf4 {[%clk 0:02:24.1]} 78... Be5+ {[%clk 0:00:27.9]} 79. Kg4
{[%clk 0:02:26]} 79... Bg7 {[%clk 0:00:29.3]} 80. Kg3 {[%clk 0:02:27.9]} 80...
Be5+ {[%clk 0:00:30.7]} 81. Kg2 {[%clk 0:02:29.8]} 81... Bf4 {[%clk 0:00:31.6]}
82. Kh3 {[%clk 0:02:31.1]} 82... Be5 {[%clk 0:00:33]} 83. Kg4 {[%clk 0:02:32.7]}
83... Kd8 {[%clk 0:00:34.7]} 84. Kf5 {[%clk 0:02:34.5]} 84... Kc7 {[%clk
0:00:36.4]} 85. Kg6 {[%clk 0:02:35.7]} 85... Bg3 {[%clk 0:00:37.7]} 86. Kf7
{[%clk 0:02:37.6]} 86... Be5 {[%clk 0:00:39.4]} 87. Ke8 {[%clk 0:02:39.1]} 87...
Bg3 {[%clk 0:00:41.3]} 88. Bg2 {[%clk 0:02:39.8]} 88... Be5 {[%clk 0:00:43.2]}
89. Kf7 {[%clk 0:02:40.7]} 89... Bg3 {[%clk 0:00:45.1]} 90. Ke6 {[%clk
0:02:42.6]} 90... Be5 {[%clk 0:00:46.7]} 91. Kf5 {[%clk 0:02:44.5]} 91... Bg3
{[%clk 0:00:48.1]} 92. Ke4 {[%clk 0:02:46.4]} 92... Be5 {[%clk 0:00:49.5]} 93.
Kf3 {[%clk 0:02:48.3]} 93... Kd8 {[%clk 0:00:51]} 94. Ke2 {[%clk 0:02:49.2]}
94... Kc7 {[%clk 0:00:52.4]} 95. Kd3 {[%clk 0:02:50.7]} 95... Kd8 {[%clk
0:00:53.9]} 96. Kc4 {[%clk 0:02:52.5]} 96... Kc7 {[%clk 0:00:55.4]} 97. Kb5
{[%clk 0:02:54]} 97... Bf4 {[%clk 0:00:56.6]} 98. Bh1 {[%clk 0:02:54.4]} 98...
Be5 {[%clk 0:00:56.5]} 99. Ka6 {[%clk 0:02:55.6]} 99... Bf4 {[%clk 0:00:54.7]}
1/2-1/2

[Event "*** Titled Tuesday Blitz"]
[Site "Chess.com"]
[Date "2019.04.02"]
[Round "2"]
[White "nutibara"]
[Black "dmosesov"]
[Result "0-1"]
[WhiteElo "2401"]
[BlackElo "2506"]
[TimeControl "180+2"]
[EndTime "14:24:22 PDT"]
[Termination "dmosesov won by resignation"]

1. e4 {[%clk 0:03:01.9]} 1... c5 {[%clk 0:02:58.3]} 2. Nf3 {[%clk 0:03:02.7]}
2... d6 {[%clk 0:02:59.4]} 3. d4 {[%clk 0:03:04.3]} 3... cxd4 {[%clk 0:03:01.3]}
4. Nxd4 {[%clk 0:03:06.1]} 4... Nf6 {[%clk 0:03:02.7]} 5. Nc3 {[%clk 0:03:07.6]}
5... a6 {[%clk 0:03:04.2]} 6. Bc4 {[%clk 0:03:09]} 6... Nbd7 {[%clk 0:03:00.2]}
7. O-O {[%clk 0:03:08.5]} 7... Qc7 {[%clk 0:03:00.6]} 8. Bb3 {[%clk 0:02:55.7]}
8... Nc5 {[%clk 0:03:01.2]} 9. Re1 {[%clk 0:02:55.7]} 9... e6 {[%clk 0:03:01.5]}
10. Bg5 {[%clk 0:02:56.1]} 10... Be7 {[%clk 0:03:01.6]} 11. Qf3 {[%clk
0:02:55.9]} 11... h6 {[%clk 0:02:56.9]} 12. Bh4 {[%clk 0:02:44]} 12... b5 {[%clk
0:02:53.3]} 13. Rad1 {[%clk 0:01:49.8]} 13... Bb7 {[%clk 0:02:42.8]} 14. Bxf6
{[%clk 0:01:48.6]} 14... gxf6 {[%clk 0:02:43.6]} 15. Qh5 {[%clk 0:01:39.7]}
15... Qd7 {[%clk 0:01:51.1]} 16. f4 {[%clk 0:00:53.3]} 16... b4 {[%clk
0:01:48.2]} 17. Na4 {[%clk 0:00:42.3]} 17... Nxb3 {[%clk 0:00:42]} 18. cxb3
{[%clk 0:00:28.9]} 18... Bd8 {[%clk 0:00:35.9]} 19. f5 {[%clk 0:00:19.7]} 19...
e5 {[%clk 0:00:34.7]} 20. Ne6 {[%clk 0:00:20.5]} 20... Rc8 {[%clk 0:00:20]} 21.
Kh1 {[%clk 0:00:19.1]} 21... Ke7 {[%clk 0:00:19.7]} 22. Nec5 {[%clk 0:00:19.5]}
22... Qb5 {[%clk 0:00:17.5]} 23. Nxb7 {[%clk 0:00:18.6]} 23... Qxb7 {[%clk
0:00:19.1]} 24. Rd2 {[%clk 0:00:18.3]} 24... Bc7 {[%clk 0:00:18.1]} 25. Qe2
{[%clk 0:00:16.2]} 25... Bb8 {[%clk 0:00:18.7]} 26. Red1 {[%clk 0:00:16.7]}
26... Rhg8 {[%clk 0:00:19.5]} 27. h3 {[%clk 0:00:17.4]} 27... Rg3 {[%clk
0:00:20]} 28. Kh2 {[%clk 0:00:18.1]} 28... Rcg8 {[%clk 0:00:21.1]} 29. Qf1
{[%clk 0:00:18.6]} 29... Qxe4 {[%clk 0:00:21.3]} 30. Nb6 {[%clk 0:00:12.9]}
30... Qh4 {[%clk 0:00:13.8]} 31. Nd5+ {[%clk 0:00:13.7]} 31... Kf8 {[%clk
0:00:15.1]} 32. Rf2 {[%clk 0:00:09.5]} 32... Ba7 {[%clk 0:00:15.9]} 33. Re2
{[%clk 0:00:09.8]} 33... R8g5 {[%clk 0:00:11.5]} 34. a3 {[%clk 0:00:10.1]} 34...
Rh5 {[%clk 0:00:07.3]} 35. Nxb4 {[%clk 0:00:08.7]} 35... Rxb3 {[%clk 0:00:08.4]}
36. Nc6 {[%clk 0:00:08.9]} 36... Qg3+ {[%clk 0:00:09.5]} 37. Kh1 {[%clk
0:00:09.4]} 37... Bc5 {[%clk 0:00:07.6]} 38. Na5 {[%clk 0:00:09.3]} 38... Re3
{[%clk 0:00:08]} 39. b4 {[%clk 0:00:10.2]} 39... Rxe2 {[%clk 0:00:09]} 40. Qxe2
{[%clk 0:00:11.5]} 40... Rxh3+ {[%clk 0:00:10.3]} 41. gxh3 {[%clk 0:00:12.3]}
41... Qxh3+ {[%clk 0:00:12.1]} 42. Qh2 {[%clk 0:00:13.6]} 42... Qf3+ {[%clk
0:00:13.7]} 43. Qg2 {[%clk 0:00:15.5]} 43... Qxd1+ {[%clk 0:00:15.2]} 44. Kh2
{[%clk 0:00:17.4]} 44... Qh5+ {[%clk 0:00:16.3]} 45. Qh3 {[%clk 0:00:18.6]}
45... Bg1+ {[%clk 0:00:14.7]} 46. Kg2 {[%clk 0:00:19]} 46... Qg5+ {[%clk
0:00:15.9]} 47. Kf1 {[%clk 0:00:19.3]} 47... Qc1+ {[%clk 0:00:15.1]} 48. Kg2
{[%clk 0:00:19.8]} 48... Bb6 {[%clk 0:00:16.1]} 49. Qf3 {[%clk 0:00:17.9]} 49...
Qd2+ {[%clk 0:00:14.4]} 50. Kh3 {[%clk 0:00:17.7]} 50... d5 {[%clk 0:00:15.3]}
51. Nb7 {[%clk 0:00:12.3]} 51... e4 {[%clk 0:00:15.6]} 52. Qg3 {[%clk 0:00:13]}
52... Qe3 {[%clk 0:00:13.8]} 53. a4 {[%clk 0:00:11.8]} 53... Qxg3+ {[%clk
0:00:14.3]} 54. Kxg3 {[%clk 0:00:13.7]} 54... d4 {[%clk 0:00:15.6]} 55. Nd6
{[%clk 0:00:09.5]} 55... Bc7 {[%clk 0:00:15.6]} 56. Kf4 {[%clk 0:00:09.8]} 56...
Bxd6+ {[%clk 0:00:17.5]} 57. Kxe4 {[%clk 0:00:10.9]} 57... Bxb4 {[%clk
0:00:19.4]} 58. Kxd4 {[%clk 0:00:12.8]} 58... a5 {[%clk 0:00:21]} 0-1

[Event "*** Titled Tuesday Blitz"]
[Site "Chess.com"]
[Date "2019.04.02"]
[Round "2"]
[White "OparinGrigoriy"]
[Black "Chessialist"]
[Result "1-0"]
[WhiteElo "2979"]
[BlackElo "2504"]
[TimeControl "180+2"]
[EndTime "14:24:23 PDT"]
[Termination "OparinGrigoriy won by resignation"]

1. g3 {[%clk 0:03:01.9]} 1... Nf6 {[%clk 0:03:00.1]} 2. Bg2 {[%clk 0:03:03.2]}
2... d5 {[%clk 0:03:01.2]} 3. Nf3 {[%clk 0:03:04.1]} 3... c6 {[%clk 0:03:02.9]}
4. O-O {[%clk 0:03:01.7]} 4... Bf5 {[%clk 0:03:04]} 5. d3 {[%clk 0:03:02.7]}
5... e6 {[%clk 0:03:05.3]} 6. c4 {[%clk 0:03:03.4]} 6... Nbd7 {[%clk 0:03:02.9]}
7. cxd5 {[%clk 0:03:03]} 7... cxd5 {[%clk 0:03:02.4]} 8. Nc3 {[%clk 0:03:04.2]}
8... Be7 {[%clk 0:03:02.4]} 9. Qb3 {[%clk 0:03:04.8]} 9... Qb6 {[%clk
0:03:02.9]} 10. Qxb6 {[%clk 0:03:05.9]} 10... Nxb6 {[%clk 0:03:04.1]} 11. Nh4
{[%clk 0:03:05.4]} 11... Bg6 {[%clk 0:03:04.5]} 12. Bd2 {[%clk 0:03:02.4]} 12...
O-O {[%clk 0:03:05.1]} 13. Nxg6 {[%clk 0:03:03.1]} 13... hxg6 {[%clk 0:03:05.8]}
14. Rfc1 {[%clk 0:03:05]} 14... Rac8 {[%clk 0:03:06.6]} 15. h4 {[%clk 0:03:04]}
15... a6 {[%clk 0:03:00.7]} 16. Kf1 {[%clk 0:03:03.6]} 16... Rfd8 {[%clk
0:03:01]} 17. e3 {[%clk 0:03:03.7]} 17... Kf8 {[%clk 0:02:59.5]} 18. Ke2 {[%clk
0:03:03.5]} 18... Ke8 {[%clk 0:03:00.1]} 19. Be1 {[%clk 0:03:03.6]} 19... Kd7
{[%clk 0:03:00.6]} 20. f4 {[%clk 0:02:53.6]} 20... Rc7 {[%clk 0:02:54.7]} 21.
Bf3 {[%clk 0:02:46.3]} 21... Rdc8 {[%clk 0:02:55.3]} 22. g4 {[%clk 0:02:47.5]}
22... Bb4 {[%clk 0:02:37]} 23. Kd1 {[%clk 0:02:45.1]} 23... Ne8 {[%clk
0:02:34.4]} 24. a3 {[%clk 0:02:43.8]} 24... Bxc3 {[%clk 0:02:30.5]} 25. Bxc3
{[%clk 0:02:43.3]} 25... Na4 {[%clk 0:02:31.6]} 26. Bd4 {[%clk 0:02:41.3]} 26...
Rxc1+ {[%clk 0:02:30.7]} 27. Rxc1 {[%clk 0:02:43.2]} 27... Rxc1+ {[%clk
0:02:16.8]} 28. Kxc1 {[%clk 0:02:45.1]} 28... Kc6 {[%clk 0:02:13.2]} 29. g5
{[%clk 0:02:42.4]} 29... Nc5 {[%clk 0:02:10.2]} 30. Kc2 {[%clk 0:02:42.4]} 30...
Kd6 {[%clk 0:02:09.5]} 31. e4 {[%clk 0:02:32.7]} 31... b6 {[%clk 0:02:06.1]} 32.
b4 {[%clk 0:02:30]} 32... Nd7 {[%clk 0:02:06.5]} 33. exd5 {[%clk 0:02:04.6]}
33... exd5 {[%clk 0:02:06.5]} 34. f5 {[%clk 0:02:05.9]} 34... b5 {[%clk
0:01:49.6]} 35. fxg6 {[%clk 0:01:39.6]} 35... fxg6 {[%clk 0:01:51.5]} 36. h5
{[%clk 0:01:40.7]} 36... gxh5 {[%clk 0:01:51]} 37. Bxh5 {[%clk 0:01:42.6]} 37...
Nc7 {[%clk 0:01:52.3]} 38. Bxg7 {[%clk 0:01:42.9]} 38... Ne6 {[%clk 0:01:53.5]}
39. Bh6 {[%clk 0:01:41.1]} 39... Nf4 {[%clk 0:01:39.2]} 40. Bg4 {[%clk
0:01:25.9]} 40... Ne5 {[%clk 0:01:40]} 41. Bf5 {[%clk 0:01:27.3]} 41... Neg6
{[%clk 0:01:33.1]} 42. Bg7 {[%clk 0:01:15.5]} 42... Ne7 {[%clk 0:01:25]} 43. Bf8
{[%clk 0:01:15.5]} 43... Ke5 {[%clk 0:01:06.5]} 44. Bd7 {[%clk 0:01:11.8]} 44...
Nfg6 {[%clk 0:01:00.2]} 45. Bg7+ {[%clk 0:00:54.1]} 45... Kd6 {[%clk 0:01:01]}
46. Bg4 {[%clk 0:00:46.6]} 46... Nc6 {[%clk 0:00:52.1]} 47. d4 {[%clk
0:00:40.2]} 47... a5 {[%clk 0:00:47.8]} 48. bxa5 {[%clk 0:00:36.5]} 48... Nxa5
{[%clk 0:00:48.6]} 49. Bf5 {[%clk 0:00:35.7]} 49... Nh4 {[%clk 0:00:44.2]} 50.
Bf8+ {[%clk 0:00:33.5]} 50... Kc6 {[%clk 0:00:44]} 51. Bh7 {[%clk 0:00:34.5]}
51... Nc4 {[%clk 0:00:42.4]} 52. g6 {[%clk 0:00:34.3]} 52... Nf5 {[%clk
0:00:40.2]} 53. Kc3 {[%clk 0:00:29.6]} 53... Kb6 {[%clk 0:00:19.9]} 54. Kb4
{[%clk 0:00:24.2]} 54... Nce3 {[%clk 0:00:06.5]} 55. g7 {[%clk 0:00:24]} 55...
Nxg7 {[%clk 0:00:07.6]} 56. Bxg7 {[%clk 0:00:25.9]} 1-0

[Event "*** Titled Tuesday Blitz"]
[Site "Chess.com"]
[Date "2019.04.02"]
[Round "2"]
[White "Fighter008"]
[Black "Medvegy"]
[Result "1/2-1/2"]
[WhiteElo "2454"]
[BlackElo "2535"]
[TimeControl "180+2"]
[EndTime "14:24:37 PDT"]
[Termination "Game drawn by repetition"]

1. e4 {[%clk 0:03:01.9]} 1... c6 {[%clk 0:03:00]} 2. d4 {[%clk 0:03:00.9]} 2...
d5 {[%clk 0:03:01.9]} 3. e5 {[%clk 0:03:01.9]} 3... Bf5 {[%clk 0:03:02.6]} 4.
Be3 {[%clk 0:03:02.1]} 4... e6 {[%clk 0:03:03.1]} 5. Nd2 {[%clk 0:03:01.2]} 5...
Nd7 {[%clk 0:03:02.1]} 6. c3 {[%clk 0:03:02]} 6... Bg6 {[%clk 0:02:57.9]} 7. f4
{[%clk 0:02:57.3]} 7... h5 {[%clk 0:02:51.3]} 8. Ngf3 {[%clk 0:02:57.3]} 8...
Nh6 {[%clk 0:02:50.9]} 9. Nb3 {[%clk 0:02:47]} 9... a5 {[%clk 0:02:29.3]} 10.
Bd3 {[%clk 0:01:58]} 10... Bxd3 {[%clk 0:02:26.9]} 11. Qxd3 {[%clk 0:01:58.3]}
11... Be7 {[%clk 0:02:18.8]} 12. O-O {[%clk 0:01:57.9]} 12... Qb6 {[%clk
0:02:14.5]} 13. Rab1 {[%clk 0:01:56.1]} 13... Qa6 {[%clk 0:02:06.9]} 14. Qc2
{[%clk 0:01:42.3]} 14... b6 {[%clk 0:01:58.4]} 15. Nc1 {[%clk 0:01:34.8]} 15...
Nf5 {[%clk 0:01:51]} 16. Bf2 {[%clk 0:01:35.1]} 16... f6 {[%clk 0:01:42.4]} 17.
Nd3 {[%clk 0:01:29.7]} 17... c5 {[%clk 0:01:37.5]} 18. exf6 {[%clk 0:01:28.9]}
18... gxf6 {[%clk 0:01:38]} 19. Rbe1 {[%clk 0:01:25.4]} 19... Kf7 {[%clk
0:01:24]} 20. Qe2 {[%clk 0:01:03.6]} 20... Nf8 {[%clk 0:01:24.6]} 21. Nh4 {[%clk
0:00:59.5]} 21... c4 {[%clk 0:01:14.8]} 22. Nc1 {[%clk 0:00:53.8]} 22... Qb7
{[%clk 0:00:34.2]} 23. Qf3 {[%clk 0:00:45.6]} 23... Qd7 {[%clk 0:00:29.6]} 24.
Re2 {[%clk 0:00:20.4]} 24... Nxh4 {[%clk 0:00:19.2]} 25. Bxh4 {[%clk 0:00:20.2]}
25... f5 {[%clk 0:00:21.1]} 26. Bxe7 {[%clk 0:00:20.9]} 26... Qxe7 {[%clk
0:00:22.9]} 27. Rfe1 {[%clk 0:00:21.5]} 27... Qf6 {[%clk 0:00:23]} 28. Re5
{[%clk 0:00:21.4]} 28... Rh6 {[%clk 0:00:22.8]} 29. Ne2 {[%clk 0:00:22.2]} 29...
Rd8 {[%clk 0:00:20.7]} 30. b3 {[%clk 0:00:23.3]} 30... b5 {[%clk 0:00:21]} 31.
bxc4 {[%clk 0:00:24.2]} 31... bxc4 {[%clk 0:00:22]} 32. Ng3 {[%clk 0:00:25]}
32... h4 {[%clk 0:00:20.2]} 33. Nf1 {[%clk 0:00:26.1]} 33... Qg7 {[%clk
0:00:21]} 34. Nd2 {[%clk 0:00:26.7]} 34... Qg4 {[%clk 0:00:20.3]} 35. h3 {[%clk
0:00:26.3]} 35... Qxf3 {[%clk 0:00:20.6]} 36. Nxf3 {[%clk 0:00:28.2]} 36... Rb8
{[%clk 0:00:21.4]} 37. Ng5+ {[%clk 0:00:28.9]} 37... Kg7 {[%clk 0:00:16.5]} 38.
Nxe6+ {[%clk 0:00:21.1]} 38... Nxe6 {[%clk 0:00:18.4]} 39. Rxe6 {[%clk
0:00:22.4]} 39... Rxe6 {[%clk 0:00:20.3]} 40. Rxe6 {[%clk 0:00:23.5]} 40... Rb2
{[%clk 0:00:15.9]} 41. Re5 {[%clk 0:00:22.5]} 41... Rxa2 {[%clk 0:00:16.4]} 42.
Rxd5 {[%clk 0:00:23.7]} 42... Kf6 {[%clk 0:00:12.3]} 43. Rc5 {[%clk 0:00:24.4]}
43... Ke6 {[%clk 0:00:11.3]} 44. Rxc4 {[%clk 0:00:25.1]} 44... Kd5 {[%clk
0:00:13.2]} 45. Rc5+ {[%clk 0:00:26.2]} 45... Ke4 {[%clk 0:00:14.7]} 46. Re5+
{[%clk 0:00:16.7]} 46... Kxf4 {[%clk 0:00:15.6]} 47. c4 {[%clk 0:00:18]} 47...
Rc2 {[%clk 0:00:08.3]} 48. c5 {[%clk 0:00:18.5]} 48... a4 {[%clk 0:00:08.2]} 49.
c6 {[%clk 0:00:16.3]} 49... a3 {[%clk 0:00:07.7]} 50. Ra5 {[%clk 0:00:15.8]}
50... a2 {[%clk 0:00:07.3]} 51. Kh2 {[%clk 0:00:17]} 51... Ke4 {[%clk
0:00:05.6]} 52. d5 {[%clk 0:00:16.7]} 52... f4 {[%clk 0:00:03.7]} 53. Ra4+
{[%clk 0:00:17.5]} 53... Ke5 {[%clk 0:00:04]} 54. c7 {[%clk 0:00:17.8]} 54...
Kxd5 {[%clk 0:00:04.2]} 55. Rxa2 {[%clk 0:00:17]} 55... Rxc7 {[%clk 0:00:05.8]}
56. Ra4 {[%clk 0:00:17.9]} 56... Ke5 {[%clk 0:00:06.8]} 57. Ra5+ {[%clk
0:00:19.2]} 57... Ke4 {[%clk 0:00:08.1]} 58. Ra4+ {[%clk 0:00:20.2]} 58... Ke3
{[%clk 0:00:07.6]} 59. Ra3+ {[%clk 0:00:19.8]} 59... Kd4 {[%clk 0:00:08.4]} 60.
Ra4+ {[%clk 0:00:20.6]} 60... Ke3 {[%clk 0:00:07.1]} 61. Ra3+ {[%clk 0:00:21.6]}
61... Ke4 {[%clk 0:00:07.9]} 62. Ra4+ {[%clk 0:00:22.7]} 62... Ke3 {[%clk
0:00:09.4]} 63. Ra3+ {[%clk 0:00:23.8]} 63... Ke4 {[%clk 0:00:10.8]} 64. Ra4+
{[%clk 0:00:25]} 1/2-1/2